bitfinex/quotes_SOLUSD_20250313
["timestamp","ask_amount","ask_price","bid_price","bid_amount"]
[1741862044343,22.601182,127.29,127.24,82.3329]
[1741862044548,22.601182,127.29,127.24,104.937082]
[1741862044849,7.856,127.29,127.24,104.937082]
[1741862045452,14.745182,127.28,127.24,82.3329]
[1741862045821,7.8573,127.27,127.24,82.3329]
[1741862047950,20.0,127.25,127.24,0.063]
[1741862048131,14.745182,127.25,127.24,0.063]
[1741862049243,22.603682,127.25,127.24,0.063]
[1741862049635,14.745182,127.22,127.21,0.063]
[1741862050428,16.298482,127.22,127.21,0.063]
[1741862051241,24.158782,127.22,127.21,0.063]
[1741862052248,32.48560608,127.22,127.21,0.063]
[1741862055656,60.83957808,127.22,127.21,0.063]
[1741862055835,41.90560608,127.22,127.21,0.063]
[1741862056353,34.04530608,127.22,127.21,0.063]
[1741862056650,41.90560608,127.22,127.21,0.063]
[1741862057748,34.04530608,127.22,127.21,0.063]
[1741862057941,41.90560608,127.22,127.21,0.063]
[1741862060042,7.8603,127.22,127.21,0.063]
[1741862060242,30.93230608,127.22,127.21,0.063]
[1741862061648,23.07200608,127.23,127.21,0.063]
[1741862062236,30.93190608,127.23,127.21,0.063]
[1741862062439,23.07200608,127.23,127.21,0.063]
[1741862062750,1.6269,127.24,127.21,0.063]
[1741862062751,20.0,127.22,127.21,0.063]
[1741862062951,43.07200608,127.22,127.21,0.063]
[1741862064157,50.93230608,127.22,127.21,0.063]
[1741862066163,20.0,127.19,127.18,0.063]
[1741862066349,20.0,127.16,127.14,0.063]
[1741862066544,23.07200608,127.15,127.14,0.063]
[1741862066760,43.07200608,127.15,127.14,0.063]
[1741862066960,62.00597808,127.15,127.14,0.0001]
[1741862067255,18.933972,127.14,127.13,0.0001]
[1741862067562,51.20597808,127.14,127.13,0.0001]
[1741862067943,59.07127808,127.14,127.13,0.0001]
[1741862068571,82.14328416,127.14,127.13,0.0001]
[1741862069262,20.0,127.11,127.06,73.24004307]
[1741862069447,43.07200608,127.11,127.06,73.24004307]
[1741862069646,43.07200608,127.11,127.1,0.0001]
[1741862070042,50.93920608,127.11,127.09,3.008e-05]
[1741862070397,18.933972,127.09,127.08,33.77820529]
[1741862070681,51.14597808,127.09,127.08,5.29e-06]
[1741862071270,18.933972,127.07,127.06,33.41434307]
[1741862071472,42.00597808,127.07,127.06,33.41434307]
[1741862071969,20.0,127.05,127.04,0.063]
[1741862072269,50.94290608,127.05,127.04,0.063]
[1741862072640,92.94888416,127.05,127.04,0.0001]
[1741862072843,18.933972,127.04,127.03,0.0001]
[1741862073146,134.20597808,127.04,127.03,0.0001]
[1741862073343,20.0,127.02,126.97,97.65339076]
[1741862073554,43.07200608,127.02,126.97,97.65339076]
[1741862074353,50.94470608,127.02,126.97,97.65339076]
[1741862075050,43.07200608,127.02,126.97,97.65339076]
[1741862075260,50.94470608,127.02,126.96,23.07200608]
[1741862075460,23.07200608,127.0,126.95,0.063]
[1741862075650,27.8727,127.02,126.94,23.07200608]
[1741862075651,23.07200608,126.99,126.94,23.07200608]
[1741862076171,23.07200608,126.98,126.93,87.59229813]
[1741862076346,23.07200608,126.99,126.93,87.59229813]
[1741862076758,23.07200608,126.99,126.93,95.47049813]
[1741862076943,23.07200608,126.99,126.94,23.07200608]
[1741862077948,26.52294886,127.01,126.95,23.07200608]
[1741862077949,23.07200608,127.0,126.95,23.07200608]
[1741862078480,43.07200608,127.0,126.95,30.94880608]
[1741862078648,23.07200608,126.99,126.94,30.94950608]
[1741862078851,23.07200608,126.99,126.94,23.07200608]
[1741862079046,20.0,127.0,126.93,30.95010608]
[1741862079047,23.07200608,126.98,126.93,30.95010608]
[1741862079253,23.07200608,126.98,126.93,23.07200608]
[1741862079673,18.64964886,126.99,126.94,23.07200608]
[1741862079981,23.07200608,126.99,126.94,23.07200608]
[1741862080160,23.07200608,126.97,126.92,32.49170608]
[1741862080360,30.94840608,126.97,126.92,1.541]
[1741862080576,30.94840608,126.97,126.92,23.07200608]
[1741862080777,30.94750608,126.98,126.93,23.07200608]
[1741862081080,41.72165494,126.99,126.94,23.07200608]
[1741862081265,49.59645494,126.99,126.94,23.07200608]
[1741862082059,20.0,126.99,126.95,23.07200608]
[1741862082488,30.94690608,126.99,126.94,23.07200608]
[1741862082665,23.07200608,126.98,126.93,23.07200608]
[1741862083583,23.07200608,126.97,126.92,23.07200608]
[1741862084383,7.8764,126.96,126.92,23.07200608]
[1741862084757,30.94810608,126.97,126.92,30.95080608]
[1741862084975,7.8746,126.99,126.93,23.07200608]
[1741862085171,30.94660608,126.99,126.94,23.07200608]
[1741862086561,7.8746,126.99,126.94,23.07200608]
[1741862086760,30.94660608,126.99,126.94,23.07200608]
[1741862087188,23.07200608,126.98,126.93,23.07200608]
[1741862087367,43.07200608,126.96,126.91,6.3634]
[1741862087559,43.07200608,126.96,126.94,0.063]
[1741862087759,23.07200608,126.95,126.94,0.063]
[1741862088171,24.66830608,126.95,126.94,0.063]
[1741862088480,32.54540608,126.95,126.94,0.063]
[1741862089460,51.47937808,126.95,126.94,0.063]
[1741862090686,32.54540608,126.95,126.94,0.063]
[1741862090860,51.19505494,126.95,126.94,0.063]
[1741862091365,51.47937808,126.95,126.94,0.063]
[1741862091988,20.0,126.92,126.89,2.8165496]
[1741862092358,20.0,126.92,126.89,10.6971496]
[1741862092584,23.07200608,126.94,126.89,33.76915568]
[1741862092787,30.94890608,126.96,126.9,23.07200608]
[1741862093292,23.07200608,126.95,126.9,23.07200608]
[1741862093668,23.07200608,126.94,126.89,33.76925568]
[1741862093985,27.5681,126.96,126.9,23.07200608]
[1741862093986,23.07200608,126.95,126.9,23.07200608]
[1741862094162,23.07200608,126.95,126.89,10.6972496]
[1741862094358,23.07200608,126.95,126.9,23.07200608]
[1741862094580,7.8777,126.94,126.9,30.95210608]
[1741862094863,30.94930608,126.95,126.9,30.95210608]
[1741862095687,30.94930608,126.95,126.9,7.8801]
[1741862095888,30.94930608,126.95,126.9,30.95210608]
[1741862097268,7.8767,126.96,126.9,30.95210608]
[1741862097463,30.94800608,126.97,126.92,23.07200608]
[1741862097677,7.876,126.97,126.92,23.07200608]
[1741862097885,30.94750608,126.98,126.92,23.07200608]
[1741862098083,23.07200608,126.97,126.92,23.07200608]
[1741862098269,23.07200608,126.97,126.91,23.07200608]
[1741862098686,23.07200608,126.96,126.9,32.51660608]
[1741862098888,23.07200608,126.94,126.89,10.6972496]
[1741862099095,23.07200608,126.94,126.89,33.76925568]
[1741862099591,30.95020608,126.94,126.89,2.8165496]
[1741862099765,23.07200608,126.93,126.89,2.8165496]
[1741862099963,23.07200608,126.92,126.89,2.8165496]
[1741862100189,23.07200608,126.93,126.89,2.8165496]
[1741862100421,23.07200608,126.92,126.89,2.8165496]
[1741862101201,27.5725,126.94,126.89,2.8165496]
[1741862101407,30.95220608,126.9,126.89,2.8165496]
[1741862101904,7.8802,126.9,126.89,2.8165496]
[1741862102080,30.95220608,126.9,126.89,2.8165496]
[1741862102281,49.60185494,126.9,126.89,2.8165496]
[1741862102498,7.8802,126.9,126.89,2.8165496]
[1741862102671,30.95220608,126.9,126.89,2.8165496]
[1741862103173,7.8802,126.9,126.89,2.8165496]
[1741862103366,30.95180608,126.91,126.89,2.8165496]
[1741862103566,23.07200608,126.93,126.89,2.8165496]
[1741862104180,20.0,126.92,126.89,2.8165496]
[1741862104371,23.07200608,126.94,126.89,33.76935568]
[1741862104593,90.9773,126.95,126.89,33.76935568]
[1741862104594,7.8773,126.95,126.9,23.07200608]
[1741862104796,30.94720608,126.98,126.93,23.07200608]
[1741862104987,23.07200608,126.97,126.92,23.07200608]
[1741862105582,30.94840608,126.96,126.91,23.07200608]
[1741862105783,23.07200608,126.94,126.9,64.52029205]
[1741862106079,23.07200608,126.94,126.89,33.76925568]
[1741862106280,30.94840608,126.96,126.91,23.07200608]
[1741862106480,7.8764,126.96,126.91,23.07200608]
[1741862106693,30.94840608,126.96,126.91,23.07200608]
[1741862107071,23.07200608,126.95,126.9,23.07200608]
[1741862107284,30.94840608,126.96,126.91,23.07200608]
[1741862107488,23.07200608,126.97,126.91,30.95150608]
[1741862107689,23.07200608,126.97,126.92,23.07200608]
[1741862107996,23.07200608,126.96,126.89,67.33684165]
[1741862108201,23.07200608,126.95,126.9,23.07200608]
[1741862108384,26.52484886,126.98,126.92,23.07200608]
[1741862108587,23.07200608,126.97,126.92,23.07200608]
[1741862109409,23.07200608,126.96,126.89,406.91954165]
[1741862109601,7.8771,126.95,126.9,23.07200608]
[1741862109800,0.03,126.94,126.9,23.07200608]
[1741862109985,23.10200608,126.94,126.89,90.47184773]
[1741862110503,23.07200608,126.93,126.89,67.39984165]
[1741862111199,43.07200608,126.92,126.89,67.39984165]
[1741862111398,20.0,126.92,126.89,2.8795496]
[1741862111775,27.8791,126.92,126.89,2.8795496]
[1741862113288,23.07200608,126.91,126.89,2.8795496]
[1741862113608,43.07200608,126.9,126.89,2.8795496]
[1741862113814,69.88617808,126.9,126.89,2.8795496]
[1741862114111,69.60185494,126.9,126.89,2.8795496]
[1741862114918,27.8802,126.9,126.89,2.8795496]
[1741862115287,50.95220608,126.9,126.89,2.8795496]
[1741862115706,51.23652922,126.9,126.89,2.8795496]
[1741862116099,69.60185494,126.9,126.89,2.8795496]
[1741862116710,66.4837877,126.9,126.89,2.8795496]
[1741862117119,66.4837877,126.9,126.89,4.96e-05]
[1741862117496,73.1256877,126.9,126.89,4.96e-05]
[1741862117898,81.9656877,126.9,126.89,4.96e-05]
[1741862118424,23.07200608,126.87,126.82,23.07200608]
[1741862118788,23.07200608,126.88,126.82,23.07200608]
[1741862119110,23.07200608,126.87,126.81,0.063]
[1741862119303,23.07200608,126.87,126.82,23.07200608]
[1741862119611,23.07200608,126.88,126.83,23.07200608]
[1741862119795,7.882,126.87,126.83,23.07200608]
[1741862121412,30.95400608,126.87,126.82,23.07200608]
[1741862121617,30.95400608,126.87,126.81,7.9487]
[1741862121618,7.8812,126.89,126.84,23.07200608]
[1741862122112,30.95320608,126.89,126.84,23.07200608]
[1741862122309,30.95320608,126.89,126.83,23.07200608]
[1741862122695,23.52383276,126.9,126.84,23.07200608]
[1741862122927,54.47613884,126.9,126.85,23.07200608]
[1741862123390,16.88193276,126.9,126.86,23.07200608]
[1741862123597,7.8798,126.91,126.83,0.28432314]
[1741862123908,7.8798,126.91,126.86,23.07200608]
[1741862124092,30.95180608,126.91,126.86,23.07200608]
[1741862124294,23.07200608,126.89,126.84,31.89200608]
[1741862124501,23.07200608,126.89,126.83,30.95630608]
[1741862125118,23.07200608,126.88,126.82,7.8847]
[1741862125318,23.07200608,126.88,126.82,23.07200608]
[1741862125491,23.07200608,126.88,126.84,23.07200608]
[1741862125696,41.72165494,126.89,126.84,23.07200608]
[1741862125891,30.95310608,126.89,126.84,23.07200608]
[1741862126189,7.8805,126.9,126.85,23.07200608]
[1741862126387,23.07200608,126.91,126.86,23.07200608]
[1741862126589,30.95090608,126.92,126.86,23.07200608]
[1741862127596,30.95090608,126.92,126.87,23.07200608]
[1741862128004,30.95090608,126.92,126.86,23.07200608]
[1741862128213,7.8789,126.92,126.86,23.07200608]
[1741862128492,30.95090608,126.92,126.86,23.07200608]
[1741862128718,23.07200608,126.91,126.86,23.07200608]
[1741862128922,30.95090608,126.92,126.85,8.78]
[1741862129227,30.95090608,126.92,126.87,23.07200608]
[1741862129796,9.5008,126.93,126.88,23.07200608]
[1741862130024,9.5008,126.93,126.89,23.07200608]
[1741862130218,0.03,126.94,126.9,23.07200608]
[1741862130527,0.03,126.94,126.87,8.16632314]
[1741862130528,0.03,126.94,126.91,23.07200608]
[1741862130698,7.9079,126.94,126.9,23.07200608]
[1741862130903,30.97990608,126.94,126.89,23.07200608]
[1741862131227,30.97990608,126.94,126.88,23.07200608]
[1741862131531,7.9079,126.94,126.89,23.07200608]
[1741862131936,23.07200608,126.93,126.88,23.07200608]
[1741862132221,7.8789,126.92,126.88,23.07200608]
[1741862133229,30.95090608,126.92,126.86,7.8822]
[1741862133600,30.95090608,126.92,126.85,23.07200608]
[1741862133601,23.07200608,126.9,126.85,23.07200608]
[1741862133827,23.07200608,126.9,126.84,23.07200608]
[1741862134011,23.07200608,126.89,126.84,23.07200608]
[1741862134324,30.95340608,126.88,126.83,23.07200608]
[1741862135601,23.07200608,126.87,126.82,23.07200608]
[1741862135902,30.95340608,126.88,126.82,23.07200608]
[1741862136294,30.95340608,126.88,126.82,30.95710608]
[1741862136520,23.07200608,126.87,126.82,23.07200608]
[1741862136826,20.0,126.84,126.81,23.13500608]
[1741862137023,23.07200608,126.86,126.81,23.13500608]
[1741862137326,30.95340608,126.88,126.83,23.07200608]
[1741862137499,7.881,126.89,126.81,7.9487]
[1741862137699,41.72165494,126.88,126.83,23.07200608]
[1741862138024,20.0,126.85,126.81,23.13500608]
[1741862138226,43.07200608,126.85,126.81,0.063]
[1741862138409,50.95570608,126.85,126.81,0.063]
[1741862138613,29.5029,126.85,126.81,0.063]
[1741862138921,52.57490608,126.85,126.81,0.063]
[1741862141728,29.5029,126.85,126.81,23.13500608]
[1741862142307,23.07200608,126.83,126.81,0.063]
[1741862143627,7.8851,126.82,126.81,0.063]
[1741862144424,21.3275,126.85,126.81,0.063]
[1741862144728,7.8839,126.84,126.81,0.063]
[1741862144930,7.8829,126.86,126.82,23.07200608]
[1741862145313,30.95490608,126.86,126.81,0.063]
[1741862145521,23.07200608,126.85,126.81,0.063]
[1741862145717,23.07200608,126.82,126.81,0.063]
[1741862146508,24.63930608,126.82,126.81,0.063]
[1741862146918,43.28895494,126.82,126.81,0.063]
[1741862147119,43.57327808,126.82,126.81,0.063]
[1741862147335,30.90100608,126.82,126.81,0.063]
[1741862147520,49.55065494,126.82,126.81,0.063]
[1741862147928,57.43575494,126.82,126.81,0.063]
[1741862148230,38.78610608,126.82,126.81,0.063]
[1741862148433,15.7141,126.82,126.81,0.063]
[1741862148627,20.0,126.82,126.81,0.063]
[1741862148936,7.8848,126.83,126.81,0.063]
[1741862149331,7.8839,126.84,126.81,0.063]
[1741862150017,32.54950608,126.85,126.81,0.063]
[1741862151520,23.07200608,126.83,126.81,0.063]
[1741862151719,43.07200608,126.82,126.81,0.063]
[1741862151913,76.10325494,126.82,126.81,0.063]
[1741862152336,90.18381201,126.82,126.81,0.063]
[1741862152739,71.53416315,126.82,126.81,0.063]
[1741862152960,65.03766315,126.82,126.81,0.063]
[1741862154628,83.68731201,126.82,126.81,0.063]
[1741862155451,83.82947358,126.82,126.81,0.0001]
[1741862156238,65.03766315,126.82,126.81,0.0001]
[1741862156420,83.82947358,126.82,126.81,0.0001]
[1741862158317,85.55503515,126.82,126.81,0.0001]
[1741862158839,20.0,126.78,126.77,0.063]
[1741862159138,57.15256315,126.78,126.77,0.063]
[1741862159347,75.80221201,126.78,126.77,0.063]
[1741862159539,82.33587358,126.78,126.77,0.0001]
[1741862160118,71.43166315,126.78,126.77,0.0001]
[1741862160527,20.0,126.78,126.77,0.0001]
[1741862161033,57.15256315,126.78,126.77,0.0001]
[1741862162637,20.0,126.78,126.77,0.0001]
[1741862162944,7.8866,126.8,126.77,0.0001]
[1741862162945,37.15256315,126.8,126.77,0.0001]
[1741862163133,37.15256315,126.81,126.77,0.0001]
[1741862164740,37.15256315,126.8,126.77,0.0001]
[1741862164941,37.15256315,126.79,126.77,0.0001]
[1741862165144,37.15256315,126.78,126.77,0.0001]
[1741862165536,37.15256315,126.79,126.77,0.0001]
[1741862165848,57.15256315,126.78,126.77,0.0001]
[1741862166351,20.0,126.78,126.77,0.0001]
[1741862167440,37.15256315,126.8,126.77,0.0001]
[1741862167635,45.03866315,126.81,126.77,0.0001]
[1741862168050,46.62136315,126.82,126.77,37.15266315]
[1741862168229,37.15256315,126.81,126.77,7.888]
[1741862168539,37.15256315,126.8,126.77,0.0001]
[1741862168737,9.4688,126.82,126.77,0.0001]
[1741862168939,37.15256315,126.81,126.77,0.0001]
[1741862169344,37.15256315,126.8,126.77,0.0001]
[1741862170240,37.15256315,126.81,126.77,0.0001]
[1741862170753,37.15256315,126.8,126.77,0.0001]
[1741862170955,37.15256315,126.81,126.77,0.0001]
[1741862171446,45.03796315,126.82,126.77,0.0001]
[1741862171849,89.38446157,126.84,126.79,37.15256315]
[1741862171850,120.25256315,126.84,126.79,37.15256315]
[1741862172157,7.8834,126.85,126.8,37.15256315]
[1741862172354,7.8834,126.85,126.8,45.03866315]
[1741862172541,45.03596315,126.85,126.8,7.8861]
[1741862173049,7.8834,126.85,126.8,45.03866315]
[1741862173250,37.15256315,126.84,126.79,0.14216157]
[1741862173549,37.15256315,126.83,126.78,45.04016315]
[1741862174054,37.15256315,126.81,126.77,6.2867]
[1741862174232,45.04006315,126.79,126.77,0.0001]
[1741862174434,37.15256315,126.78,126.77,0.0001]
[1741862174959,45.04006315,126.79,126.77,0.0001]
[1741862175507,37.15256315,126.78,126.77,0.0001]
[1741862175636,55.80221201,126.78,126.77,0.0001]
[1741862176360,37.15256315,126.78,126.77,0.0001]
[1741862176531,45.04016315,126.78,126.77,0.0001]
[1741862176729,63.68981201,126.78,126.77,0.0001]
[1741862177058,63.83197358,126.78,126.77,0.0001]
[1741862177238,0.14216157,126.77,126.76,0.0001]
[1741862177438,74.44728787,126.77,126.76,0.0001]
[1741862177639,37.29472472,126.77,126.76,0.0001]
[1741862177962,62.10313515,126.77,126.76,0.0001]
[1741862178143,99.2556983,126.77,126.76,0.0001]
[1741862178543,107.1439983,126.77,126.76,0.0001]
[1741862179160,69.84927358,126.77,126.76,0.0001]
[1741862179355,69.99143515,126.77,126.76,0.0001]
[1741862179559,69.70711201,126.77,126.76,0.0001]
[1741862183460,51.05746315,126.77,126.76,0.0001]
[1741862183662,45.04086315,126.77,126.76,0.0001]
[1741862184164,63.69051201,126.77,126.76,0.0001]
[1741862184541,100.98523673,126.77,126.76,0.0001]
[1741862184756,101.1273983,126.77,126.76,0.0001]
[1741862186142,20.0,126.74,126.68,37.21556315]
[1741862186342,37.15256315,126.72,126.68,0.063]
[1741862187170,37.15256315,126.71,126.68,0.063]
[1741862187368,45.04396315,126.72,126.68,0.063]
[1741862187573,7.8914,126.72,126.68,37.21556315]
[1741862187748,45.04396315,126.72,126.68,0.063]
[1741862188576,20.0,126.73,126.7,37.15256315]
[1741862188766,20.0,126.73,126.69,37.15256315]
[1741862188967,37.15256315,126.76,126.71,37.15256315]
[1741862189162,45.04146315,126.76,126.71,37.15256315]
[1741862189480,45.04146315,126.76,126.7,1.6243]
[1741862189481,37.15256315,126.75,126.7,38.77686315]
[1741862190375,23.23588635,126.75,126.7,24.86018635]
[1741862190548,23.23588635,126.74,126.69,31.95588635]
[1741862190753,23.23588635,126.73,126.68,23.29888635]
[1741862190952,23.23588635,126.72,126.68,0.063]
[1741862191387,31.12768635,126.72,126.68,0.063]
[1741862191753,7.8918,126.72,126.68,23.29888635]
[1741862191956,20.0,126.72,126.69,23.23588635]
[1741862192151,20.0,126.72,126.69,23.29888635]
[1741862192978,27.891,126.73,126.69,23.29888635]
[1741862193273,51.12688635,126.73,126.69,0.063]
[1741862194383,27.891,126.73,126.69,23.29888635]
[1741862194872,7.891,126.73,126.69,31.19198635]
[1741862195174,7.891,126.73,126.69,23.29888635]
[1741862195494,31.12688635,126.73,126.69,0.063]
[1741862195875,7.891,126.73,126.69,31.19208635]
[1741862196075,104.3244,126.77,126.7,23.23588635]
[1741862196283,31.12478635,126.76,126.7,23.23588635]
[1741862196662,23.23588635,126.75,126.7,23.23588635]
[1741862197074,23.23588635,126.76,126.71,23.23588635]
[1741862197268,83.1,126.77,126.73,23.23588635]
[1741862197574,0.03,126.78,126.74,23.23588635]
[1741862197575,7.918,126.78,126.74,23.23588635]
[1741862197883,31.15388635,126.78,126.73,23.23588635]
[1741862198059,31.15388635,126.78,126.72,23.23588635]
[1741862198267,23.23588635,126.77,126.72,23.23588635]
[1741862198475,23.23588635,126.76,126.71,23.23588635]
[1741862198675,23.23588635,126.77,126.72,23.23588635]
[1741862198866,23.23588635,126.77,126.7,22.6741]
[1741862199067,23.23588635,126.76,126.71,23.23588635]
[1741862199568,31.12418635,126.77,126.72,23.23588635]
[1741862199764,23.23588635,126.76,126.71,23.23588635]
[1741862200576,7.8891,126.76,126.72,23.23588635]
[1741862201081,31.15368635,126.78,126.73,23.23588635]
[1741862202263,31.15368635,126.78,126.73,31.12648635]
[1741862202887,0.03,126.78,126.75,23.23588635]
[1741862203065,7.9177,126.78,126.74,23.23588635]
[1741862203388,0.03,126.78,126.77,23.23588635]
[1741862204157,0.03,126.78,126.77,23.37804792]
[1741862204484,0.03,126.78,126.77,31.26634792]
[1741862204786,0.03,126.78,126.77,31.12418635]
[1741862204985,11.99689468,126.87,126.78,0.28432314]
[1741862205281,23.23588635,126.84,126.78,82.3]
[1741862205588,23.23588635,126.83,126.78,23.23588635]
[1741862205885,43.23588635,126.84,126.79,23.23588635]
[1741862206259,20.0,126.84,126.8,23.23588635]
[1741862206465,20.0,126.84,126.81,23.23588635]
[1741862206672,20.0,126.84,126.8,23.23588635]
[1741862207181,27.8839,126.84,126.79,23.23588635]
[1741862207366,23.23588635,126.86,126.81,23.23588635]
[1741862207568,23.23588635,126.85,126.8,23.23588635]
[1741862207893,20.0,126.84,126.8,23.23588635]
[1741862208580,23.23588635,126.86,126.81,23.23588635]
[1741862208885,39.81828635,126.87,126.81,23.23588635]
[1741862209086,23.23588635,126.86,126.81,23.23588635]
[1741862209264,23.23588635,126.85,126.8,23.23588635]
[1741862209867,23.23588635,126.86,126.81,23.23588635]
[1741862210596,31.11898635,126.86,126.8,23.23588635]
[1741862210780,23.23588635,126.85,126.8,23.23588635]
[1741862211099,31.11898635,126.86,126.8,23.23588635]
[1741862211402,31.11898635,126.86,126.81,23.23588635]
[1741862211573,31.11898635,126.86,126.8,23.23588635]
[1741862212180,23.23588635,126.85,126.8,23.23588635]
[1741862212582,7.8837,126.85,126.81,23.23588635]
[1741862212978,7.8837,126.85,126.8,23.23588635]
[1741862213593,7.8837,126.85,126.81,23.23588635]
[1741862213804,31.11958635,126.85,126.8,23.23588635]
[1741862214788,7.8837,126.85,126.81,23.23588635]
[1741862215991,7.9137,126.85,126.81,23.23588635]
[1741862216189,31.14958635,126.85,126.8,23.23588635]
[1741862216394,23.23588635,126.83,126.78,0.063]
[1741862216590,7.8851,126.82,126.78,0.063]
[1741862218207,7.8847,126.83,126.79,23.23588635]
[1741862218491,7.8839,126.84,126.8,23.23588635]
[1741862220381,9.4216,126.85,126.8,23.23588635]
[1741862220696,32.65748635,126.85,126.8,23.23588635]
[1741862221193,52.36578635,126.85,126.8,23.23588635]
[1741862221582,9.4216,126.85,126.81,23.23588635]
[1741862221777,32.65748635,126.85,126.8,23.23588635]
[1741862222001,52.36578635,126.85,126.8,23.23588635]
[1741862223496,0.03,126.85,126.82,23.23588635]
[1741862223900,7.9134,126.85,126.81,23.23588635]
[1741862224073,7.9134,126.85,126.79,16.587]
[1741862224276,7.9134,126.85,126.81,23.23588635]
[1741862224807,0.03,126.85,126.82,23.23588635]
[1741862225193,20.0,126.84,126.81,23.23588635]
[1741862226599,0.03,126.85,126.82,23.23588635]
[1741862226804,23.26588635,126.85,126.8,23.23588635]
[1741862227300,23.23588635,126.83,126.79,8.7]
[1741862227604,0.03,126.85,126.81,23.23588635]
[1741862227798,0.03,126.85,126.83,23.23588635]
[1741862227999,0.03,126.85,126.81,23.23588635]
[1741862228180,31.14918635,126.85,126.8,23.23588635]
[1741862228588,20.0,126.84,126.81,23.23588635]
[1741862228782,0.03,126.85,126.81,23.23588635]
[1741862228983,20.0,126.84,126.81,23.23588635]
[1741862229195,31.14938635,126.85,126.8,23.23588635]
[1741862229600,7.9135,126.85,126.81,23.23588635]
[1741862229909,0.03,126.85,126.81,23.23588635]
[1741862230407,0.03,126.85,126.83,23.23588635]
[1741862230601,0.03,126.85,126.82,23.23588635]
[1741862230790,23.26588635,126.85,126.81,8.7]
[1741862230990,23.26588635,126.85,126.79,23.23588635]
[1741862231198,7.8845,126.83,126.78,23.29888635]
[1741862232105,31.12038635,126.83,126.78,23.29888635]
[1741862232506,23.23588635,126.84,126.79,23.23588635]
[1741862233191,42.97518635,126.85,126.8,23.23588635]
[1741862234008,50.85848635,126.85,126.8,23.23588635]
[1741862234808,7.9133,126.85,126.81,23.23588635]
[1741862235195,23.23588635,126.83,126.78,23.29888635]
[1741862235400,23.23588635,126.83,126.78,0.063]
[1741862235811,23.23588635,126.82,126.78,0.063]
[1741862236111,42.95038635,126.81,126.78,0.063]
[1741862236314,44.55368635,126.81,126.78,0.063]
[1741862237014,1.6033,126.81,126.78,0.063]
[1741862237388,1.6033,126.81,126.78,23.29888635]
[1741862237586,7.8851,126.82,126.78,23.29888635]
[1741862237787,14.0951,126.83,126.79,23.23588635]
[1741862238722,37.33098635,126.83,126.78,23.29888635]
[1741862239425,37.33098635,126.83,126.78,0.063]
[1741862239804,37.33098635,126.83,126.78,23.29888635]
[1741862241007,37.33098635,126.83,126.78,0.063]
[1741862242302,37.33098635,126.83,126.78,23.29888635]
[1741862242926,14.0951,126.83,126.78,31.18648635]
[1741862243932,1.5802,126.85,126.82,23.23588635]
[1741862244224,1.5802,126.85,126.83,23.23588635]
[1741862244530,9.4636,126.85,126.8,23.23588635]
[1741862244916,9.4636,126.85,126.8,31.12198635]
[1741862245126,9.4636,126.85,126.8,23.23588635]
[1741862245324,9.4636,126.85,126.8,31.12198635]
[1741862245537,23.23588635,126.84,126.79,31.91588635]
[1741862245731,23.23588635,126.84,126.79,23.23588635]
[1741862246330,32.69948635,126.85,126.78,0.063]
[1741862246526,32.69948635,126.85,126.8,23.23588635]
[1741862246740,32.69948635,126.85,126.79,7.887]
[1741862246741,32.69948635,126.85,126.79,23.23588635]
[1741862247530,32.69948635,126.85,126.8,23.23588635]
[1741862247720,9.4636,126.85,126.8,23.23588635]
[1741862248534,41.88553521,126.84,126.79,23.23588635]
[1741862248738,23.23588635,126.82,126.78,0.063]
[1741862249335,31.12038635,126.83,126.78,0.063]
[1741862249512,31.12038635,126.83,126.78,23.29888635]
[1741862249832,31.12038635,126.83,126.78,0.063]
[1741862250031,31.12038635,126.83,126.78,23.29888635]
[1741862250331,7.8845,126.83,126.79,23.23588635]
[1741862250633,7.8845,126.83,126.78,23.29888635]
[1741862250834,31.12038635,126.83,126.78,23.29888635]
[1741862251333,31.12038635,126.83,126.78,0.063]
[1741862251537,23.23588635,126.82,126.78,0.063]
[1741862251915,50.83178635,126.83,126.78,0.063]
[1741862252340,7.8845,126.83,126.78,31.18638635]
[1741862252830,31.12038635,126.83,126.78,0.063]
[1741862253335,23.23588635,126.82,126.78,0.063]
[1741862253537,27.5959,126.83,126.78,0.063]
[1741862253538,50.83178635,126.83,126.78,0.063]
[1741862254037,7.8845,126.83,126.78,23.29888635]